fUSD/lending_fUSD_20260614
["ID","MTS","AMOUNT","RATE_DAILY","PERIOD"]
[425043100,1781445042000,-500.0,0.0002484,2]
[425043101,1781445042000,-7920.34344951,0.00024841,2]
[425043102,1781445042000,-320.361053,0.00024841,2]
[425043104,1781445042000,-151.0,0.00024877,2]
[425043094,1781445042000,-2319.72410669,0.00024812,2]
[425043105,1781445042000,-329.43,0.0002491,7]
[425043108,1781445042000,-980.8,0.00024982,2]
[425043115,1781445042000,-251.55461454,0.00024985,2]
[425043113,1781445042000,-181.08010149,0.00024985,2]
[425043114,1781445042000,-209.40437684,0.00024985,2]
[425043111,1781445042000,-152.94885553,0.00024985,2]
[425043116,1781445042000,-151.0,0.00024985,2]
[425043109,1781445042000,-518.5,0.00024985,2]
[425043110,1781445042000,-368.40127583,0.00024985,2]
[425043107,1781445042000,-151.0,0.00024932,2]
[425043103,1781445042000,-415.50636625,0.00024877,2]
[425043106,1781445042000,-415.50636625,0.00024932,2]
[425043112,1781445042000,-154.94482128,0.00024985,2]
[425043182,1781445043000,-194.72792766,0.00026081,2]
[425043187,1781445043000,-412.03,0.00026148,120]
[425043180,1781445043000,-368.40127583,0.00026081,2]
[425043179,1781445043000,-350.0,0.00026059,2]
[425043175,1781445043000,-551.0,0.00025948,2]
[425043184,1781445043000,-151.0,0.00026081,2]
[425043181,1781445043000,-152.94885553,0.00026081,2]
[425043185,1781445043000,-2257.0,0.000261,2]
[425043186,1781445043000,-368.0,0.000261,2]
[425043176,1781445043000,-708.4265196,0.00025964,2]
[425043189,1781445043000,-440.4,0.00026296,2]
[425043196,1781445043000,-165.78,0.00026495,2]
[425043192,1781445043000,-151.0,0.00026357,2]
[425043195,1781445043000,-459.3104223,0.00026456,2]
[425043191,1781445043000,-500.0,0.00026353,2]
[425043193,1781445043000,-501.50342416,0.0002639,5]
[425043190,1781445043000,-6280.0,0.00026329,2]
[425043197,1781445043000,-329.43,0.00026547,7]
[425043199,1781445043000,-46044.8143912,0.00026602,2]
[425043198,1781445043000,-320.361053,0.00026602,2]
[425043174,1781445043000,-166.66,0.00025942,2]
[425043188,1781445043000,-1905.7444366,0.00026224,2]
[425043178,1781445043000,-1505.03,0.00026027,2]
[425043158,1781445043000,-151.0,0.00025786,2]
[425043173,1781445043000,-7920.34344951,0.00025933,2]
[425043200,1781445043000,-368.40127583,0.00026629,2]
[425043148,1781445043000,-217.15233878,0.00025533,2]
[425043152,1781445043000,-3578.0,0.00025724,3]
[425043150,1781445043000,-500.0,0.00025586,2]
[425043149,1781445043000,-151.0,0.00025533,2]
[425043151,1781445043000,-166.88897039,0.00025649,2]
[425043154,1781445043000,-992.07,0.00025786,2]
[425043153,1781445043000,-663.48,0.00025786,2]
[425043155,1781445043000,-10636.92,0.00025786,2]
[425043156,1781445043000,-2250.02,0.00025786,2]
[425043157,1781445043000,-282.859357,0.00025786,2]
[425043159,1781445043000,-214.828336,0.00025786,2]
[425043161,1781445043000,-214.828336,0.00025786,2]
[425043160,1781445043000,-151.0,0.00025786,2]
[425043162,1781445043000,-214.828336,0.00025786,2]
[425043165,1781445043000,-432.172988,0.00025786,2]
[425043163,1781445043000,-214.828336,0.00025786,2]
[425043171,1781445043000,-2494.55939288,0.00025908,2]
[425043164,1781445043000,-432.172988,0.00025786,2]
[425043167,1781445043000,-432.172988,0.00025786,2]
[425043170,1781445043000,-794.54,0.000258,2]
[425043168,1781445043000,-432.172988,0.00025786,2]
[425043172,1781445043000,-4137.28463144,0.0002593,2]
[425043183,1781445043000,-225.18697532,0.00026081,2]
[425043206,1781445043000,-150.0,0.00026641,2]
[425043194,1781445043000,-700.0,0.00026423,2]
[425043201,1781445043000,-152.94885553,0.00026629,2]
[425043231,1781445043000,-500.0,0.00026848,2]
[425043232,1781445043000,-3000.0,0.00026849,2]
[425043233,1781445043000,-3000.0,0.00026849,2]
[425043235,1781445043000,-997.5,0.00026849,2]
[425043236,1781445043000,-150.0,0.00026849,2]
[425043234,1781445043000,-3000.0,0.00026849,2]
[425043238,1781445043000,-500.0,0.00026849,2]
[425043237,1781445043000,-500.0,0.00026849,2]
[425043239,1781445043000,-500.0,0.00026849,2]
[425043240,1781445043000,-500.0,0.00026849,2]
[425043230,1781445043000,-350.0,0.00026846,2]
[425043242,1781445043000,-500.0,0.00026849,2]
[425043244,1781445043000,-500.0,0.00026849,2]
[425043243,1781445043000,-500.0,0.00026849,2]
[425043246,1781445043000,-500.0,0.00026849,2]
[425043247,1781445043000,-500.0,0.00026849,2]
[425043248,1781445043000,-500.0,0.00026849,2]
[425043245,1781445043000,-500.0,0.00026849,2]
[425043249,1781445043000,-500.0,0.00026849,2]
[425043250,1781445043000,-500.0,0.00026849,2]
[425043251,1781445043000,-500.0,0.00026849,2]
[425043204,1781445043000,-151.0,0.00026629,2]
[425043252,1781445043000,-500.0,0.00026849,2]
[425043229,1781445043000,-350.0,0.00026801,2]
[425043241,1781445043000,-500.0,0.00026849,2]
[425043221,1781445043000,-214.828336,0.00026781,2]
[425043222,1781445043000,-214.828336,0.00026781,2]
[425043205,1781445043000,-464.49351707,0.0002664,2]
[425043203,1781445043000,-233.5188934,0.00026629,2]
[425043202,1781445043000,-201.93286098,0.00026629,2]
[425043207,1781445043000,-446.0,0.00026692,10]
[425043208,1781445043000,-5367.0,0.00026753,10]
[425043215,1781445043000,-214.828336,0.00026781,2]
[425043213,1781445043000,-151.0,0.00026781,2]
[425043212,1781445043000,-151.0,0.00026781,2]
[425043216,1781445043000,-214.828336,0.00026781,2]
[425043218,1781445043000,-214.828336,0.00026781,2]
[425043211,1781445043000,-139208.88495148,0.00026781,7]
[425043228,1781445043000,-320.361053,0.00026781,2]
[425043214,1781445043000,-151.0,0.00026781,2]
[425043209,1781445043000,-500.0,0.0002678,2]
[425043217,1781445043000,-245.961735,0.00026781,2]
[425043219,1781445043000,-214.828336,0.00026781,2]
[425043220,1781445043000,-214.828336,0.00026781,2]
[425043227,1781445043000,-432.172988,0.00026781,2]
[425043226,1781445043000,-432.172988,0.00026781,2]
[425043223,1781445043000,-214.828328,0.00026781,2]
[425043224,1781445043000,-432.172988,0.00026781,2]
[425043210,1781445043000,-169944.5066253,0.00026781,7]
[425043225,1781445043000,-432.172988,0.00026781,2]
[425043298,1781445044000,-164.27986954,0.00027297,2]
[425043299,1781445044000,-161.66201745,0.00027297,2]
[425043286,1781445044000,-209.40437684,0.00027177,2]
[425043290,1781445044000,-175.99838716,0.00027216,2]
[425043289,1781445044000,-214.5244,0.0002718,2]
[425043297,1781445044000,-213.96765886,0.00027297,2]
[425043287,1781445044000,-242.15909246,0.00027177,2]
[425043288,1781445044000,-151.0,0.00027177,2]
[425043285,1781445044000,-152.94885553,0.00027177,2]
[425043283,1781445044000,-721.12765534,0.00027176,2]
[425043291,1781445044000,-214.5244,0.0002723,2]
[425043296,1781445044000,-486.68092048,0.00027297,2]
[425043293,1781445044000,-350.0,0.00027254,2]
[425043307,1781445044000,-667.37624602,0.00027396,2]
[425043295,1781445044000,-166.66,0.00027295,2]
[425043294,1781445044000,-1808.6174251,0.00027283,2]
[425043300,1781445044000,-500.0,0.00027299,2]
[425043302,1781445044000,-158.2858011,0.000273,30]
[425043313,1781445044000,-500.0,0.00027396,2]
[425043311,1781445044000,-500.0,0.00027396,2]
[425043303,1781445044000,-503.24,0.00027335,7]
[425043301,1781445044000,-86752.87012828,0.000273,2]
[425043312,1781445044000,-500.0,0.00027396,2]
[425043309,1781445044000,-300.0,0.00027396,2]
[425043310,1781445044000,-500.0,0.00027396,2]
[425043284,1781445044000,-368.40127583,0.00027177,2]
[425043292,1781445044000,-189.77816024,0.0002723,2]
[425043282,1781445044000,-599.60298507,0.00027176,2]
[425043256,1781445044000,-1664.31,0.00026945,120]
[425043279,1781445044000,-500.0,0.00027144,2]
[425043254,1781445044000,-250.0,0.00026849,8]
[425043253,1781445044000,-387.22968512,0.00026849,2]
[425043255,1781445044000,-152.0,0.00026891,3]
[425043305,1781445044000,-350.0,0.00027365,2]
[425043260,1781445044000,-4137.28463144,0.00027025,2]
[425043259,1781445044000,-1300.0,0.00027,7]
[425043261,1781445044000,-7920.34344951,0.00027026,2]
[425043264,1781445044000,-184.31096311,0.00027066,7]
[425043258,1781445044000,-1300.0,0.00027,7]
[425043262,1781445044000,-157.66607487,0.00027039,2]
[425043263,1781445044000,-157.12045173,0.00027065,7]
[425043257,1781445044000,-1300.78924668,0.00027,7]
[425043281,1781445044000,-151.0,0.00027176,2]
[425043266,1781445044000,-181.25265505,0.00027066,7]
[425043268,1781445044000,-174.20806139,0.00027066,7]
[425043267,1781445044000,-173.13517259,0.00027066,2]
[425043271,1781445044000,-193.65510976,0.00027067,7]
[425043273,1781445044000,-432.172988,0.00027073,2]
[425043276,1781445044000,-432.172996,0.00027073,2]
[425043275,1781445044000,-432.172988,0.00027073,2]
[425043272,1781445044000,-161.45008748,0.00027067,7]
[425043269,1781445044000,-167.14272521,0.00027066,7]
[425043274,1781445044000,-432.172988,0.00027073,2]
[425043278,1781445044000,-214.52441,0.0002713,2]
[425043277,1781445044000,-118601.7914311,0.00027073,2]
[425043280,1781445044000,-200.0,0.00027156,2]
[425043265,1781445044000,-194.45962881,0.00027066,7]
[425043314,1781445044000,-500.0,0.00027396,2]
[425043308,1781445044000,-667.37624602,0.00027396,2]
[425043327,1781445044000,-500.0,0.00027396,2]
[425043343,1781445044000,-500.0,0.00027396,2]
[425043348,1781445044000,-500.0,0.00027396,2]
[425043350,1781445044000,-504.85617891,0.00027396,2]
[425043349,1781445044000,-500.0,0.00027396,2]
[425043351,1781445044000,-300.0,0.00027396,10]
[425043353,1781445044000,-500.0,0.00027396,2]
[425043357,1781445044000,-500.0,0.00027396,2]
[425043354,1781445044000,-500.0,0.00027396,2]
[425043356,1781445044000,-300.0,0.00027396,10]
[425043355,1781445044000,-500.0,0.00027396,2]
[425043352,1781445044000,-500.0,0.00027396,2]
[425043358,1781445044000,-500.0,0.00027396,2]
[425043362,1781445044000,-500.0,0.00027396,2]
[425043359,1781445044000,-500.0,0.00027396,2]
[425043361,1781445044000,-199.77912892,0.00027396,2]
[425043363,1781445044000,-500.0,0.00027396,2]
[425043364,1781445044000,-500.0,0.00027396,2]
[425043367,1781445044000,-500.0,0.00027396,2]
[425043366,1781445044000,-500.0,0.00027396,2]
[425043369,1781445044000,-500.0,0.00027396,2]
[425043368,1781445044000,-500.0,0.00027396,2]
[425043365,1781445044000,-500.0,0.00027396,2]
[425043373,1781445044000,-150.0,0.00027396,2]
[425043371,1781445044000,-500.0,0.00027396,2]
[425043370,1781445044000,-500.0,0.00027396,2]
[425043325,1781445044000,-500.0,0.00027396,2]
[425043372,1781445044000,-500.0,0.00027396,2]
[425043347,1781445044000,-300.0,0.00027396,10]
[425043345,1781445044000,-500.0,0.00027396,2]
[425043360,1781445044000,-500.0,0.00027396,2]
[425043346,1781445044000,-353.02916033,0.00027396,2]
[425043324,1781445044000,-500.0,0.00027396,2]
[425043344,1781445044000,-500.0,0.00027396,2]
[425043315,1781445044000,-500.0,0.00027396,2]
[425043318,1781445044000,-500.0,0.00027396,2]
[425043319,1781445044000,-500.0,0.00027396,2]
[425043321,1781445044000,-500.0,0.00027396,2]
[425043316,1781445044000,-500.0,0.00027396,2]
[425043322,1781445044000,-500.0,0.00027396,2]
[425043326,1781445044000,-500.0,0.00027396,2]
[425043320,1781445044000,-500.0,0.00027396,2]
[425043323,1781445044000,-500.0,0.00027396,2]
[425043328,1781445044000,-500.0,0.00027396,2]
[425043339,1781445044000,-500.0,0.00027396,2]
[425043317,1781445044000,-500.0,0.00027396,2]
[425043330,1781445044000,-529.33688092,0.00027396,2]
[425043341,1781445044000,-500.0,0.00027396,2]
[425043334,1781445044000,-500.0,0.00027396,2]
[425043342,1781445044000,-500.0,0.00027396,2]
[425043338,1781445044000,-500.0,0.00027396,2]
[425043340,1781445044000,-500.0,0.00027396,2]
[425043329,1781445044000,-500.0,0.00027396,2]
[425043335,1781445044000,-300.0,0.00027396,10]
[425043332,1781445044000,-759.47,0.00027396,2]
[425043337,1781445044000,-300.0,0.00027396,10]
[425043331,1781445044000,-1123.40740569,0.00027396,2]
[425043333,1781445044000,-759.47,0.00027396,2]
[425043336,1781445044000,-345.64958057,0.00027396,2]
[425043410,1781445045000,-500.0,0.00027397,2]
[425043415,1781445045000,-223.8066,0.00027397,2]
[425043414,1781445045000,-500.0,0.00027397,2]
[425043423,1781445045000,-539.01361197,0.00027397,2]
[425043404,1781445045000,-500.0,0.00027397,2]
[425043407,1781445045000,-500.0,0.00027397,2]
[425043411,1781445045000,-500.0,0.00027397,2]
[425043405,1781445045000,-500.0,0.00027397,2]
[425043418,1781445045000,-500.0,0.00027397,2]
[425043406,1781445045000,-500.0,0.00027397,2]
[425043408,1781445045000,-818.61,0.00027397,2]
[425043409,1781445045000,-500.0,0.00027397,2]
[425043421,1781445045000,-500.0,0.00027397,2]
[425043424,1781445045000,-523.18348948,0.00027397,2]
[425043422,1781445045000,-1090.91,0.00027397,2]
[425043420,1781445045000,-640.03,0.00027397,2]
[425043416,1781445045000,-702.11,0.00027397,2]
[425043417,1781445045000,-500.0,0.00027397,2]
[425043419,1781445045000,-151.0,0.00027397,2]
[425043425,1781445045000,-500.0,0.00027397,2]
[425043427,1781445045000,-500.0,0.00027397,2]
[425043428,1781445045000,-878.56,0.00027397,2]
[425043433,1781445045000,-500.0,0.00027397,2]
[425043436,1781445045000,-1047.3,0.00027397,2]
[425043438,1781445045000,-841.96,0.00027397,2]
[425043432,1781445045000,-1241.29,0.00027397,2]
[425043412,1781445045000,-500.0,0.00027397,2]
[425043426,1781445045000,-500.0,0.00027397,2]
[425043413,1781445045000,-322.42506243,0.00027397,2]
[425043374,1781445045000,-438.19650333,0.00027396,10]
[425043402,1781445045000,-500.0,0.00027397,2]
[425043431,1781445045000,-500.0,0.00027397,2]
[425043375,1781445045000,-300.0,0.00027396,10]
[425043376,1781445045000,-500.0,0.00027397,120]
[425043377,1781445045000,-234.78256651,0.00027397,2]
[425043380,1781445045000,-500.0,0.00027397,2]
[425043379,1781445045000,-233.61280614,0.00027397,7]
[425043383,1781445045000,-500.0,0.00027397,2]
[425043385,1781445045000,-192.84847544,0.00027397,2]
[425043381,1781445045000,-643.88359108,0.00027397,2]
[425043388,1781445045000,-500.0,0.00027397,2]
[425043386,1781445045000,-210.42586346,0.00027397,7]
[425043387,1781445045000,-500.0,0.00027397,2]
[425043384,1781445045000,-500.0,0.00027397,2]
[425043403,1781445045000,-200.0,0.00027397,2]
[425043382,1781445045000,-500.0,0.00027397,2]
[425043389,1781445045000,-500.0,0.00027397,2]
[425043390,1781445045000,-554.6381,0.00027397,2]
[425043392,1781445045000,-500.0,0.00027397,2]
[425043401,1781445045000,-928.24,0.00027397,2]
[425043391,1781445045000,-500.0,0.00027397,2]
[425043394,1781445045000,-500.0,0.00027397,15]
[425043397,1781445045000,-500.0,0.00027397,2]
[425043393,1781445045000,-259.21606581,0.00027397,2]
[425043396,1781445045000,-500.0,0.00027397,2]
[425043395,1781445045000,-500.0,0.00027397,2]
[425043398,1781445045000,-500.0,0.00027397,2]
[425043400,1781445045000,-500.0,0.00027397,2]
[425043399,1781445045000,-169.16615529,0.00027397,2]
[425043378,1781445045000,-1000.0,0.00027397,2]
[425043434,1781445045000,-612.03,0.00027397,2]
[425043494,1781445045000,-500.0,0.00027397,2]
[425043435,1781445045000,-542.63,0.00027397,2]
[425043471,1781445045000,-778.72,0.00027397,2]
[425043466,1781445045000,-500.0,0.00027397,2]
[425043470,1781445045000,-500.0,0.00027397,2]
[425043467,1781445045000,-500.0,0.00027397,2]
[425043469,1781445045000,-500.0,0.00027397,2]
[425043474,1781445045000,-567.36,0.00027397,2]
[425043476,1781445045000,-500.0,0.00027397,2]
[425043487,1781445045000,-500.0,0.00027397,2]
[425043486,1781445045000,-500.0,0.00027397,2]
[425043477,1781445045000,-500.0,0.00027397,2]
[425043478,1781445045000,-500.0,0.00027397,2]
[425043484,1781445045000,-500.0,0.00027397,2]
[425043481,1781445045000,-500.0,0.00027397,2]
[425043479,1781445045000,-500.0,0.00027397,2]
[425043475,1781445045000,-500.0,0.00027397,2]
[425043480,1781445045000,-500.0,0.00027397,2]
[425043482,1781445045000,-500.0,0.00027397,2]
[425043483,1781445045000,-500.0,0.00027397,2]
[425043485,1781445045000,-754.28,0.00027397,2]
[425043491,1781445045000,-823.59,0.00027397,2]
[425043488,1781445045000,-500.0,0.00027397,2]
[425043490,1781445045000,-1458.94,0.00027397,2]
[425043489,1781445045000,-500.0,0.00027397,2]
[425043429,1781445045000,-1096.27,0.00027397,2]
[425043492,1781445045000,-500.0,0.00027397,2]
[425043495,1781445045000,-1341.6,0.00027397,2]
[425043496,1781445045000,-500.0,0.00027397,2]
[425043468,1781445045000,-500.0,0.00027397,2]
[425043464,1781445045000,-500.0,0.00027397,2]
[425043493,1781445045000,-500.0,0.00027397,2]
[425043473,1781445045000,-500.0,0.00027397,2]
[425043463,1781445045000,-1142.71,0.00027397,2]
[425043430,1781445045000,-500.0,0.00027397,2]
[425043439,1781445045000,-500.0,0.00027397,2]
[425043441,1781445045000,-626.34,0.00027397,2]
[425043451,1781445045000,-500.0,0.00027397,2]
[425043440,1781445045000,-500.0,0.00027397,2]
[425043443,1781445045000,-851.15,0.00027397,2]
[425043442,1781445045000,-276.59793754,0.00027397,2]
[425043447,1781445045000,-623.39,0.00027397,2]
[425043449,1781445045000,-500.0,0.00027397,2]
[425043448,1781445045000,-500.0,0.00027397,2]
[425043450,1781445045000,-500.0,0.00027397,2]
[425043446,1781445045000,-500.0,0.00027397,2]
[425043444,1781445045000,-500.0,0.00027397,2]
[425043437,1781445045000,-500.0,0.00027397,2]
[425043453,1781445045000,-1312.82,0.00027397,2]
[425043445,1781445045000,-219.6595963,0.00027397,2]
[425043472,1781445045000,-500.0,0.00027397,2]
[425043462,1781445045000,-500.0,0.00027397,2]
[425043460,1781445045000,-500.0,0.00027397,2]
[425043458,1781445045000,-500.0,0.00027397,2]
[425043465,1781445045000,-500.0,0.00027397,2]
[425043459,1781445045000,-506.73346814,0.00027397,2]
[425043452,1781445045000,-580.56,0.00027397,2]
[425043457,1781445045000,-598.71,0.00027397,2]
[425043461,1781445045000,-500.0,0.00027397,2]
[425043456,1781445045000,-500.0,0.00027397,2]
[425043455,1781445045000,-500.0,0.00027397,2]
[425043454,1781445045000,-500.0,0.00027397,2]
[425043536,1781445046000,-500.0,0.00027397,2]
[425043530,1781445046000,-500.0,0.00027397,2]
[425043525,1781445046000,-158.40920122,0.00027397,2]
[425043535,1781445046000,-500.0,0.00027397,2]
[425043527,1781445046000,-500.0,0.00027397,2]
[425043537,1781445046000,-500.0,0.00027397,2]
[425043533,1781445046000,-500.0,0.00027397,2]
[425043529,1781445046000,-500.0,0.00027397,2]
[425043528,1781445046000,-785.28,0.00027397,2]
[425043534,1781445046000,-500.0,0.00027397,2]
[425043531,1781445046000,-500.0,0.00027397,2]
[425043545,1781445046000,-500.0,0.00027397,2]
[425043538,1781445046000,-517.07,0.00027397,2]
[425043541,1781445046000,-685.02,0.00027397,2]
[425043543,1781445046000,-1063.85,0.00027397,2]
[425043540,1781445046000,-500.0,0.00027397,2]
[425043539,1781445046000,-500.0,0.00027397,2]
[425043549,1781445046000,-500.0,0.00027397,2]
[425043554,1781445046000,-500.0,0.00027397,2]
[425043558,1781445046000,-500.0,0.00027397,2]
[425043552,1781445046000,-1461.32,0.00027397,2]
[425043556,1781445046000,-500.0,0.00027397,2]
[425043526,1781445046000,-500.0,0.00027397,2]
[425043532,1781445046000,-500.0,0.00027397,2]
[425043523,1781445046000,-521.64,0.00027397,2]
[425043505,1781445046000,-500.0,0.00027397,2]
[425043524,1781445046000,-500.0,0.00027397,2]
[425043497,1781445046000,-500.0,0.00027397,2]
[425043498,1781445046000,-651.0,0.00027397,2]
[425043499,1781445046000,-500.0,0.00027397,2]
[425043511,1781445046000,-500.0,0.00027397,2]
[425043501,1781445046000,-602.87,0.00027397,2]
[425043510,1781445046000,-500.0,0.00027397,2]
[425043500,1781445046000,-591.16,0.00027397,2]
[425043502,1781445046000,-500.0,0.00027397,2]
[425043503,1781445046000,-500.0,0.00027397,2]
[425043508,1781445046000,-500.0,0.00027397,2]
[425043506,1781445046000,-505.03,0.00027397,2]
[425043504,1781445046000,-500.0,0.00027397,2]
[425043509,1781445046000,-632.56,0.00027397,2]
[425043507,1781445046000,-500.0,0.00027397,2]
[425043513,1781445046000,-500.0,0.00027397,2]
[425043515,1781445046000,-500.0,0.00027397,2]
[425043512,1781445046000,-500.0,0.00027397,2]
[425043520,1781445046000,-500.0,0.00027397,2]
[425043514,1781445046000,-500.0,0.00027397,2]
[425043547,1781445046000,-500.0,0.00027397,2]
[425043518,1781445046000,-500.0,0.00027397,2]
[425043517,1781445046000,-500.0,0.00027397,2]
[425043521,1781445046000,-500.0,0.00027397,2]
[425043522,1781445046000,-500.0,0.00027397,2]
[425043559,1781445046000,-415.475,0.00027397,2]
[425043593,1781445046000,-1840.24,0.00027397,2]
[425043572,1781445046000,-500.0,0.00027397,2]
[425043592,1781445046000,-990.21,0.00027397,2]
[425043594,1781445046000,-500.0,0.00027397,2]
[425043597,1781445046000,-500.0,0.00027397,2]
[425043589,1781445046000,-500.0,0.00027397,2]
[425043591,1781445046000,-705.25,0.00027397,2]
[425043590,1781445046000,-500.0,0.00027397,2]
[425043586,1781445046000,-500.0,0.00027397,2]
[425043598,1781445046000,-442.55616894,0.00027397,2]
[425043599,1781445046000,-500.0,0.00027397,2]
[425043600,1781445046000,-500.0,0.00027397,2]
[425043602,1781445046000,-500.0,0.00027397,2]
[425043605,1781445046000,-500.0,0.00027397,2]
[425043606,1781445046000,-500.0,0.00027397,2]
[425043603,1781445046000,-500.0,0.00027397,2]
[425043601,1781445046000,-554.6822991,0.00027397,2]
[425043608,1781445046000,-500.0,0.00027397,2]
[425043610,1781445046000,-500.0,0.00027397,2]
[425043607,1781445046000,-500.0,0.00027397,2]
[425043611,1781445046000,-500.0,0.00027397,2]
[425043609,1781445046000,-500.0,0.00027397,2]
[425043612,1781445046000,-500.0,0.00027397,2]
[425043613,1781445046000,-500.0,0.00027397,2]
[425043560,1781445046000,-1597.02,0.00027397,2]
[425043596,1781445046000,-500.0,0.00027397,2]
[425043595,1781445046000,-1068.99,0.00027397,2]
[425043604,1781445046000,-500.0,0.00027397,2]
[425043587,1781445046000,-1289.83,0.00027397,2]
[425043588,1781445046000,-724.8,0.00027397,2]
[425043561,1781445046000,-500.0,0.00027397,2]
[425043563,1781445046000,-500.0,0.00027397,2]
[425043570,1781445046000,-500.0,0.00027397,2]
[425043567,1781445046000,-500.0,0.00027397,2]
[425043562,1781445046000,-500.0,0.00027397,2]
[425043565,1781445046000,-500.0,0.00027397,2]
[425043571,1781445046000,-500.0,0.00027397,2]
[425043564,1781445046000,-500.0,0.00027397,2]
[425043566,1781445046000,-500.0,0.00027397,2]
[425043568,1781445046000,-500.0,0.00027397,2]
[425043574,1781445046000,-500.0,0.00027397,2]
[425043569,1781445046000,-604.92,0.00027397,2]
[425043584,1781445046000,-500.0,0.00027397,2]
[425043583,1781445046000,-500.0,0.00027397,2]
[425043581,1781445046000,-500.0,0.00027397,2]
[425043580,1781445046000,-719.02,0.00027397,2]
[425043579,1781445046000,-500.0,0.00027397,2]
[425043576,1781445046000,-500.0,0.00027397,2]
[425043585,1781445046000,-500.0,0.00027397,2]
[425043578,1781445046000,-500.0,0.00027397,2]
[425043575,1781445046000,-500.0,0.00027397,2]
[425043577,1781445046000,-1083.26,0.00027397,2]
[425043573,1781445046000,-668.87,0.00027397,2]
[425043582,1781445046000,-516.31,0.00027397,2]
[425043665,1781445047000,-500.0,0.00027397,2]
[425043667,1781445047000,-737.97,0.00027397,2]
[425043654,1781445047000,-500.0,0.00027397,2]
[425043655,1781445047000,-500.0,0.00027397,2]
[425043651,1781445047000,-530.23,0.00027397,2]
[425043648,1781445047000,-1147.82,0.00027397,2]
[425043650,1781445047000,-500.0,0.00027397,2]
[425043642,1781445047000,-500.0,0.00027397,2]
[425043644,1781445047000,-500.0,0.00027397,2]
[425043645,1781445047000,-500.0,0.00027397,2]
[425043647,1781445047000,-500.0,0.00027397,2]
[425043649,1781445047000,-186.68283341,0.00027397,2]
[425043668,1781445047000,-500.0,0.00027397,2]
[425043673,1781445047000,-500.0,0.00027397,2]
[425043657,1781445047000,-500.0,0.00027397,2]
[425043658,1781445047000,-500.0,0.00027397,2]
[425043663,1781445047000,-500.0,0.00027397,2]
[425043656,1781445047000,-707.63,0.00027397,2]
[425043659,1781445047000,-500.0,0.00027397,2]
[425043661,1781445047000,-500.0,0.00027397,2]
[425043660,1781445047000,-335.69307104,0.00027397,2]
[425043664,1781445047000,-521.69,0.00027397,2]
[425043669,1781445047000,-641.25,0.00027397,2]
[425043671,1781445047000,-741.49,0.00027397,2]
[425043676,1781445047000,-500.0,0.00027397,2]
[425043652,1781445047000,-500.0,0.00027397,2]
[425043662,1781445047000,-500.0,0.00027397,2]
[425043643,1781445047000,-500.0,0.00027397,2]
[425043617,1781445047000,-500.0,0.00027397,2]
[425043646,1781445047000,-500.0,0.00027397,2]
[425043618,1781445047000,-500.0,0.00027397,2]
[425043614,1781445047000,-500.0,0.00027397,2]
[425043672,1781445047000,-500.0,0.00027397,2]